bitfinex/quotes_SOLUSD_20241110
["timestamp","ask_amount","ask_price","bid_price","bid_amount"]
[1731238069957,0.12549,205.25,205.19,15.204]
[1731238074065,0.12549,205.23,205.19,15.204]
[1731238077760,160.52549,205.23,205.19,15.204]
[1731238078682,160.52549,205.23,205.14,16.0914]
[1731238078983,0.12549,205.21,205.14,16.0914]
[1731238080276,160.4,205.22,205.14,16.0914]
[1731238080481,0.12549,205.21,205.14,16.0914]
[1731238080984,160.52549,205.21,205.14,16.0914]
[1731238082360,5.1365183,205.24,205.14,16.0914]
[1731238082566,160.4,205.27,205.14,16.0914]
[1731238082782,165.4608388,205.27,205.14,16.0914]
[1731238083083,5.0608388,205.27,205.14,16.0914]
[1731238083669,5.0608388,205.27,205.17,16.5939]
[1731238084104,0.12549,205.26,205.17,16.5939]
[1731238086676,0.12549,205.26,205.17,6.5939]
[1731238086996,0.12549,205.26,205.18,20.0]
[1731238090380,0.12549,205.26,205.17,6.5939]
[1731238092584,0.12549,205.26,205.18,20.0]
[1731238096776,5.0608388,205.27,205.18,20.0]
[1731238098892,0.12549,205.26,205.18,20.0]
[1731238099805,0.12549,205.26,205.17,6.5939]
[1731238104291,0.12549,205.26,205.18,20.0]
[1731238122606,5.0608388,205.27,205.18,20.0]
[1731238122789,0.12549,205.26,205.17,6.5939]
[1731238124095,0.12549,205.24,205.17,6.5939]
[1731238124484,5.2620083,205.24,205.17,6.5939]
[1731238127710,0.12549,205.24,205.17,6.5939]
[1731238130094,0.12549,205.26,205.17,6.5939]
[1731238137614,0.12549,205.26,205.18,20.0]
[1731238139313,5.0608388,205.27,205.18,20.0]
[1731238140409,0.12549,205.26,205.18,20.0]
[1731238142895,5.0608388,205.27,205.18,20.0]
[1731238144205,5.0608388,205.27,205.19,6.2142]
[1731238148724,0.12549,205.26,205.19,6.2142]
[1731238160617,20.12549,205.26,205.17,6.5939]
[1731238161623,20.12549,205.26,205.15,20.0]
[1731238162925,180.52549,205.26,205.14,6.2142]
[1731238163333,185.80645274,205.26,205.14,6.2142]
[1731238164921,20.12549,205.24,205.14,6.2142]
[1731238174929,180.52549,205.24,205.14,6.2142]
[1731238175128,20.0,205.22,205.12,16.6181]
[1731238175830,0.12549,205.21,205.12,16.6181]
[1731238176336,20.0,205.23,205.12,16.6181]
[1731238176538,20.0,205.24,205.12,16.6181]
[1731238177534,0.12549,205.24,205.13,20.0]
[1731238178737,20.12549,205.24,205.12,16.6181]
[1731238180735,20.0,205.22,205.12,16.6181]
[1731238181236,0.12549,205.21,205.12,16.6181]
[1731238183742,20.12549,205.23,205.12,16.6181]
[1731238185926,20.0,205.23,205.12,16.6181]
[1731238186131,0.12549,205.21,205.12,16.6181]
[1731238186833,0.12549,205.22,205.12,16.6181]
[1731238197655,4.01224156,205.23,205.12,16.6181]
[1731238197857,20.0,205.24,205.12,16.6181]
[1731238198639,5.03720037,205.25,205.13,20.0]
[1731238203038,0.12549,205.24,205.13,20.0]
[1731238203656,5.03720037,205.25,205.15,20.0]
[1731238204952,5.03720037,205.25,205.17,20.0]
[1731238206744,5.03720037,205.25,205.19,20.0]
[1731238207051,5.03720037,205.25,205.21,20.0]
[1731238209359,5.03720037,205.25,205.22,6.1763]
[1731238209556,3.24,205.4,205.24,15.0195]
[1731238209759,0.12549,205.39,205.24,15.0195]
[1731238210360,0.12549,205.39,205.25,20.0]
[1731238210944,0.12549,205.39,205.24,15.0195]
[1731238211155,0.12549,205.37,205.24,15.0195]
[1731238211345,0.12549,205.35,205.24,15.0195]
[1731238211678,20.12549,205.35,205.24,15.0195]
[1731238211838,29.8282071,205.35,205.22,6.1763]
[1731238212040,160.4,205.36,205.18,15.0195]
[1731238212041,20.12549,205.33,205.18,15.0195]
[1731238212253,20.12549,205.31,205.18,15.0195]
[1731238213245,185.81934441,205.31,205.18,15.0195]
[1731238214661,0.12549,205.29,205.18,15.0195]
[1731238214859,20.12549,205.29,205.18,15.0195]
[1731238215359,5.29385441,205.31,205.19,20.0]
[1731238215556,20.0,205.3,205.19,20.0]
[1731238215766,20.0,205.33,205.19,20.0]
[1731238216143,0.12549,205.32,205.19,20.0]
[1731238216652,0.12549,205.32,205.18,15.0195]
[1731238220463,20.12549,205.3,205.18,15.0195]
[1731238222362,20.12549,205.28,205.18,15.0195]
[1731238222555,20.12549,205.26,205.18,15.0195]
[1731238223261,22.07349001,205.26,205.18,15.0195]
[1731238223569,20.12549,205.26,205.18,15.0195]
[1731238226356,0.12549,205.26,205.18,15.0195]
[1731238226558,160.4,205.27,205.18,15.0195]
[1731238226875,164.43415815,205.27,205.18,15.0195]
[1731238227764,160.4,205.27,205.18,15.0195]
[1731238228370,0.12549,205.28,205.18,15.0195]
[1731238229873,20.12549,205.28,205.18,15.0195]
[1731238234202,0.12549,205.26,205.18,15.0195]
[1731238234483,20.12549,205.26,205.18,15.0195]
[1731238234673,180.52549,205.26,205.1,23.0505]
[1731238234879,20.12549,205.24,205.1,23.0505]
[1731238236173,20.12549,205.22,205.1,23.0505]
[1731238239673,0.12549,205.2,205.1,23.0505]
[1731238239987,20.12549,205.2,205.1,23.0505]
[1731238240192,0.12549,205.2,205.1,23.0505]
[1731238240688,160.4,205.21,205.1,23.0505]
[1731238242980,0.12549,205.2,205.1,23.0505]
[1731238243484,20.12549,205.18,205.1,23.0505]
[1731238245387,160.4,205.19,205.1,23.0505]
[1731238245590,21.33285441,205.26,205.1,23.0505]
[1731238245591,160.4,205.25,205.1,23.0505]
[1731238246503,0.12549,205.24,205.1,23.0505]
[1731238247191,20.12549,205.24,205.1,23.0505]
[1731238248180,0.12549,205.24,205.1,23.0505]
[1731238248681,3.97250662,205.25,205.1,23.0505]
[1731238248981,20.0,205.27,205.1,23.0505]
[1731238249218,0.12549,205.26,205.1,23.0505]
[1731238251990,0.12549,205.24,205.1,23.0505]
[1731238253393,0.12549,205.24,205.1,6.5017]
[1731238253598,4.10990425,205.27,205.11,22.2805]
[1731238253774,0.12549,205.27,205.11,22.2805]
[1731238254283,0.12549,205.27,205.11,22.1805]
[1731238255101,20.12549,205.27,205.11,22.2805]
[1731238255996,20.12549,205.27,205.13,15.6423]
[1731238256586,20.12549,205.27,205.14,6.5382]
[1731238256804,0.12549,205.28,205.14,6.5382]
[1731238259699,0.12549,205.28,205.15,15.6423]
[1731238259995,0.12549,205.28,205.16,6.5382]
[1731238261111,160.4,205.34,205.18,6.5382]
[1731238261292,160.4,205.34,205.19,15.6423]
[1731238261482,5.06812863,205.29,205.19,15.6423]
[1731238261685,0.12549,205.33,205.19,15.6423]
[1731238261891,5.06885419,205.29,205.19,15.6423]
[1731238262298,20.12549,205.34,205.19,15.6423]
[1731238262485,5.0692501,205.29,205.19,15.6423]
[1731238262684,24.23601359,205.34,205.19,15.6423]
[1731238262685,0.12549,205.28,205.19,15.6423]
[1731238262896,20.12549,205.32,205.19,15.6423]
[1731238264310,5.07118123,205.31,205.19,15.6423]
[1731238266406,5.07118123,205.31,205.21,16.3036]
[1731238267189,0.12549,205.3,205.21,16.3036]
[1731238268993,20.12549,205.3,205.21,16.3036]
[1731238270910,5.07118123,205.31,205.21,16.3036]
[1731238271207,0.12549,205.3,205.21,16.3036]
[1731238272694,20.12549,205.3,205.21,16.3036]
[1731238272892,24.53435269,205.3,205.21,16.3036]
[1731238273691,20.12549,205.3,205.21,16.3036]
[1731238273888,0.12549,205.28,205.21,16.3036]
[1731238274103,20.0,205.3,205.21,16.3036]
[1731238274309,0.12549,205.29,205.21,16.3036]
[1731238274615,20.0,205.28,205.21,16.3036]
[1731238274799,0.12549,205.27,205.21,16.3036]
[1731238276603,160.52549,205.27,205.2,6.556]
[1731238279017,160.52549,205.27,205.16,15.1428]
[1731238279196,0.12549,205.25,205.16,15.1428]
[1731238279914,0.12549,205.23,205.16,15.1428]
[1731238280218,20.12549,205.23,205.14,6.0203]
[1731238280715,20.12549,205.24,205.14,6.0203]
[1731238280928,25.41934441,205.24,205.14,6.0203]
[1731238281096,5.29385441,205.23,205.14,6.0203]
[1731238281294,20.0,205.22,205.14,6.0203]
[1731238281917,20.12549,205.22,205.14,6.0203]
[1731238285300,0.12549,205.2,205.14,6.0203]
[1731238285497,20.12549,205.2,205.1,15.1428]
[1731238286100,20.12549,205.21,205.1,15.1428]
[1731238286521,180.52549,205.21,205.1,15.1428]
[1731238287306,160.52549,205.21,205.1,15.1428]
[1731238290424,20.12549,205.22,205.1,15.1428]
[1731238292220,20.12549,205.2,205.1,15.1428]
[1731238296333,20.12549,205.21,205.1,15.1428]
[1731238300208,21.13799001,205.21,205.1,15.1428]
[1731238300429,20.12549,205.21,205.1,15.1428]
[1731238302218,20.12549,205.19,205.1,15.1428]
[1731238307435,180.52549,205.19,205.1,15.1428]
[1731238308532,20.12549,205.17,205.1,15.1428]
[1731238309261,160.4,205.22,205.1,15.1428]
[1731238309262,20.12549,205.21,205.1,15.1428]
[1731238311834,9.29860731,205.23,205.1,15.1428]
[1731238312039,4.0047529,205.23,205.11,6.4597]
[1731238312337,0.12549,205.23,205.11,6.4597]
[1731238312923,4.12712358,205.24,205.11,6.4597]
[1731238313147,172.30045516,205.29,205.12,15.4236]
[1731238313336,0.12549,205.28,205.12,15.4236]
[1731238314419,20.12549,205.28,205.12,15.4236]
[1731238315019,26.73209075,205.28,205.12,15.4236]
[1731238316324,32.02594516,205.28,205.12,15.4236]
[1731238316540,20.12549,205.26,205.12,15.4236]
[1731238316723,25.41934441,205.26,205.12,15.4236]
[1731238317040,20.12549,205.24,205.12,15.4236]
[1731238317239,20.12549,205.22,205.12,15.4236]
[1731238318027,180.52549,205.22,205.12,15.4236]
[1731238321248,160.4,205.22,205.12,15.4236]
[1731238322750,20.0,205.24,205.12,15.4236]
[1731238322929,160.4,205.28,205.14,22.3121]
[1731238324038,0.12549,205.27,205.14,22.3121]
[1731238324354,20.12549,205.27,205.14,22.3121]
[1731238325944,20.12549,205.25,205.14,22.3121]
[1731238326140,20.0,205.25,205.14,22.3121]
[1731238326835,160.4,205.26,205.14,22.3121]
[1731238327033,20.0,205.29,205.16,15.7612]
[1731238327339,0.12549,205.28,205.16,15.7612]
[1731238327743,23.24,205.3,205.16,15.7612]
[1731238328139,0.12549,205.29,205.16,15.7612]
[1731238330559,27.31972857,205.3,205.16,15.7612]
[1731238330750,27.31972857,205.3,205.17,6.5509]
[1731238331047,27.31972857,205.3,205.18,15.7612]
[1731238331241,7.31972857,205.3,205.19,6.5509]
[1731238331446,5.07448388,205.29,205.2,15.7612]
[1731238332645,20.0,205.28,205.2,15.7612]
[1731238334033,0.12549,205.27,205.2,15.7612]
[1731238339142,20.12549,205.27,205.2,15.7612]
[1731238339354,0.12549,205.27,205.2,15.7612]
[1731238339541,20.12549,205.27,205.2,15.7612]
[1731238341060,20.12549,205.28,205.2,15.7612]
[1731238341858,0.12549,205.28,205.2,15.7612]
[1731238342074,20.12549,205.28,205.2,15.7612]
[1731238343271,0.12549,205.28,205.2,15.7612]
[1731238343757,20.12549,205.28,205.2,15.7612]
[1731238346774,180.52549,205.28,205.2,15.7612]
[1731238350970,180.4,205.28,205.2,15.7612]
[1731238352659,0.12549,205.27,205.2,15.7612]
[1731238354674,0.12549,205.27,205.19,6.5509]
[1731238354974,5.41934441,205.27,205.19,6.5509]
[1731238355163,0.12549,205.25,205.19,6.5509]
[1731238355658,185.69385441,205.26,205.19,6.5509]
[1731238355975,165.69385441,205.26,205.19,6.5509]
[1731238357672,20.0,205.28,205.19,6.5509]
[1731238358079,25.07533286,205.28,205.19,6.5509]
[1731238358375,5.07533286,205.28,205.19,6.5509]
[1731238358871,5.07533286,205.28,205.2,16.5084]
[1731238369863,5.07533286,205.28,205.2,16.6084]
[1731238370386,5.07533286,205.28,205.2,16.5084]
[1731238372591,5.07533286,205.28,205.21,6.192]
[1731238379783,20.0,205.27,205.21,6.192]
[1731238380272,5.07533286,205.28,205.21,6.192]
[1731238381873,20.12549,205.34,205.21,6.192]
[1731238382070,20.12549,205.32,205.2,16.5084]
[1731238382272,20.12549,205.3,205.2,16.5084]
[1731238382490,20.0,205.28,205.2,16.5084]
[1731238385678,5.29385441,205.29,205.2,16.5084]
[1731238385880,160.4,205.34,205.2,16.5084]
[1731238386196,5.29385441,205.35,205.2,16.5084]
[1731238386378,0.12549,205.34,205.21,6.19]
[1731238386580,5.29385441,205.35,205.21,6.19]
[1731238388483,20.0,205.34,205.21,6.19]
[1731238389089,5.06532943,205.33,205.21,6.19]
[1731238391398,20.0,205.32,205.21,6.19]
[1731238391596,5.06532943,205.33,205.21,6.19]
[1731238395102,20.0,205.32,205.21,6.19]
[1731238399409,10.35918384,205.33,205.21,6.19]
[1731238399998,5.06532943,205.33,205.21,6.19]
[1731238401606,5.06532943,205.33,205.23,6.3668]
[1731238403303,5.06532943,205.33,205.24,15.089]
[1731238404806,5.06532943,205.33,205.25,6.3668]
[1731238408612,5.06532943,205.33,205.25,6.4668]
[1731238408822,5.06532943,205.33,205.27,0.1]
[1731238409707,5.06532943,205.33,205.26,15.089]
[1731238411622,5.06532943,205.33,205.27,0.1]
[1731238411803,5.06532943,205.33,205.29,0.1]
[1731238412115,5.06532943,205.33,205.3,15.2405]
[1731238412316,5.29385441,205.41,205.33,0.1]
[1731238412497,2.55251941,205.47,205.34,15.2405]
[1731238412820,2.55251941,205.47,205.36,6.1353]
[1731238414303,20.0,205.46,205.36,6.1353]
[1731238414520,5.29385441,205.46,205.36,6.1353]
[1731238415019,2.55251941,205.5,205.37,0.1]
[1731238415221,11.08637382,205.52,205.38,15.2405]
[1731238415425,7.84637382,205.52,205.38,15.2405]
[1731238415723,5.29385441,205.52,205.38,15.2405]
[1731238416096,20.0,205.51,205.38,15.2405]
[1731238416717,2.55251941,205.56,205.41,6.1353]
[1731238417023,5.29385441,205.57,205.41,6.1353]
[1731238417221,5.29385441,205.57,205.42,0.1]
[1731238417424,5.29385441,205.57,205.43,15.2405]
[1731238418126,18.4805,205.65,205.47,15.2405]
[1731238418313,5.29385441,205.63,205.49,6.1353]
[1731238418511,5.29385441,205.63,205.49,6.2353]
[1731238418908,5.29385441,205.63,205.51,0.1]
[1731238419105,5.29385441,205.63,205.53,0.1]
[1731238419426,5.29385441,205.69,205.54,15.2405]
[1731238421203,5.29385441,205.69,205.55,6.1353]
[1731238421517,20.0,205.68,205.55,6.1353]
[1731238422623,20.0,205.7,205.55,6.2353]
[1731238422823,3.98767792,205.73,205.57,0.1]
[1731238423125,0.12549,205.73,205.57,0.1]
[1731238424325,0.12549,205.73,205.55,6.1353]
[1731238424902,0.3375,205.72,205.55,6.1353]
[1731238425102,0.12549,205.72,205.55,6.1353]
[1731238425707,0.12549,205.72,205.56,0.1]
[1731238425928,20.0,205.73,205.58,0.1]
[1731238426124,20.0,205.73,205.55,6.1353]
[1731238426331,0.12549,205.72,205.55,6.1353]
[1731238429825,20.0,205.71,205.55,6.1353]
[1731238430022,0.12549,205.7,205.55,6.1353]
[1731238433830,20.0,205.71,205.56,15.4838]
[1731238434128,0.12549,205.74,205.57,6.0805]
[1731238434341,0.12549,205.74,205.58,0.1]
[1731238434634,5.32981385,205.77,205.59,15.3838]
[1731238435129,5.32981385,205.77,205.6,6.0805]
[1731238435826,0.12549,205.76,205.6,6.0805]
[1731238436312,20.12549,205.76,205.6,6.0805]
[1731238438310,5.45530385,205.76,205.6,6.0805]
[1731238438510,20.0,205.75,205.6,6.0805]
[1731238439326,0.12549,205.74,205.6,6.0805]
[1731238439734,20.0,205.75,205.61,15.3838]
[1731238440016,0.12549,205.74,205.61,15.3838]
[1731238441240,0.12549,205.72,205.61,15.3838]
[1731238441638,0.12549,205.7,205.61,15.3838]
[1731238441818,5.45530385,205.7,205.61,15.3838]
[1731238442019,20.0,205.69,205.61,15.3838]
[1731238442318,0.12549,205.68,205.6,6.0805]
[1731238442523,20.0,205.66,205.6,6.0805]
[1731238442730,0.12549,205.65,205.56,16.2319]
[1731238443034,5.45530385,205.65,205.56,16.2319]
[1731238445842,20.0,205.64,205.56,16.2319]
[1731238446349,0.12549,205.63,205.55,6.2785]
[1731238447831,0.12549,205.63,205.52,16.2319]
[1731238449322,0.12549,205.63,205.5,6.2785]
[1731238450340,20.12549,205.61,205.5,6.2785]
[1731238450542,0.12549,205.59,205.5,6.2785]
[1731238450744,20.12549,205.59,205.5,6.2785]
[1731238451640,0.12549,205.59,205.5,6.2785]
[1731238451840,160.4,205.61,205.5,6.2785]
[1731238452148,9.47439033,205.65,205.5,6.2785]
[1731238452942,20.0,205.64,205.5,6.2785]
[1731238453149,0.12549,205.63,205.5,6.2785]
[1731238453448,4.14457648,205.65,205.5,6.2785]
[1731238453640,0.12549,205.64,205.5,6.2785]
[1731238454143,0.12549,205.68,205.5,6.2785]
[1731238455047,20.12549,205.68,205.5,6.2785]
[1731238455549,0.12549,205.68,205.5,6.2785]
[1731238455749,0.12549,205.68,205.51,16.1875]
[1731238456745,0.12549,205.68,205.52,6.6622]
[1731238456942,23.95955791,205.69,205.52,6.6622]
[1731238457147,5.32981385,205.7,205.53,16.1875]
[1731238457325,0.12549,205.69,205.54,6.6622]
[1731238457943,3.94297719,205.7,205.55,16.1875]
[1731238458147,0.12549,205.73,205.55,16.1875]
[1731238458337,6.60660075,205.74,205.56,0.1]
[1731238458529,4.03561039,205.74,205.58,16.1875]
[1731238458725,0.12549,205.73,205.58,16.1875]
[1731238459244,0.12549,205.75,205.58,16.1875]
[1731238459932,20.12549,205.75,205.58,16.1875]
[1731238462233,0.2,205.73,205.58,16.1875]
[1731238462436,0.12549,205.7,205.58,16.1875]
[1731238462635,5.45530385,205.7,205.58,16.1875]
[1731238462844,0.12549,205.68,205.58,16.1875]
[1731238469132,4.2348834,205.68,205.58,16.1875]
[1731238469335,0.12549,205.68,205.58,16.1875]
[1731238471156,0.12549,205.66,205.57,6.6622]
[1731238471328,0.12549,205.64,205.57,6.6622]
[1731238471652,0.12549,205.64,205.53,15.1559]
[1731238471945,20.12549,205.62,205.53,15.1559]
[1731238472536,22.64342133,205.62,205.53,15.1559]
[1731238474237,20.12549,205.62,205.53,15.1559]
[1731238476840,20.0,205.66,205.53,15.1559]
[1731238477149,0.12549,205.65,205.53,15.1559]
[1731238483645,4.02627399,205.66,205.53,15.1559]
[1731238483955,0.12549,205.66,205.53,15.1559]
[1731238485351,0.12549,205.66,205.54,6.319]
[1731238485746,188.49692735,205.74,205.55,16.3891]
[1731238485943,28.09692735,205.74,205.56,6.319]
[1731238486150,0.12549,205.73,205.56,6.319]
[1731238486348,0.12549,205.73,205.57,16.3891]
[1731238487941,1.06559001,205.73,205.57,16.3891]
[1731238488146,0.12549,205.73,205.57,16.3891]
[1731238489763,0.12549,205.73,205.58,6.319]
[1731238490551,0.12549,205.73,205.59,16.3891]
[1731238494383,24.04388251,205.74,205.6,6.319]
[1731238494552,4.04388251,205.74,205.61,16.3891]
[1731238494869,0.12549,205.76,205.62,6.319]
[1731238495452,20.0,205.77,205.62,6.319]
[1731238495958,0.12549,205.76,205.62,6.319]
[1731238496267,0.12549,205.76,205.63,16.3891]
[1731238496454,0.12549,205.77,205.63,16.3891]
[1731238497248,20.0,205.77,205.63,16.3891]
[1731238497762,7.3831634,205.78,205.63,16.3891]
[1731238498472,0.12549,205.77,205.63,16.3891]
[1731238498658,7.3831634,205.78,205.65,16.3891]
[1731238499167,20.12549,205.77,205.65,16.3891]
[1731238501571,20.12549,205.77,205.66,6.0859]
[1731238501871,0.12549,205.77,205.66,6.0859]
[1731238502069,0.12549,205.77,205.67,16.332]
[1731238513257,0.94968997,205.77,205.67,16.332]
[1731238513458,0.12549,205.77,205.67,16.332]
[1731238514559,3.24,205.78,205.67,16.332]
[1731238514779,0.12549,205.77,205.67,16.332]
[1731238515276,20.12549,205.75,205.67,16.332]
[1731238515481,0.12549,205.75,205.67,16.332]
[1731238515976,0.94968997,205.76,205.67,16.332]
[1731238516181,0.12549,205.76,205.67,16.332]
[1731238520966,3.24,205.78,205.7,6.4371]
[1731238521167,5.03525828,205.84,205.7,6.4371]
[1731238521379,0.12549,205.83,205.7,6.4371]
[1731238521585,17.3904034,205.83,205.7,6.4371]
[1731238522083,20.12549,205.81,205.7,6.4371]
[1731238522286,0.12549,205.79,205.7,6.4371]
[1731238522482,20.12549,205.79,205.7,6.4371]
[1731238525384,20.12549,205.8,205.7,6.4371]
[1731238526904,20.0,205.8,205.7,6.4371]
[1731238527286,0.12549,205.79,205.7,6.4371]
[1731238527789,5.03525828,205.81,205.7,6.4371]
[1731238527969,3.98858519,205.84,205.7,6.4371]
[1731238528171,6.3344266,205.85,205.7,6.4371]
[1731238528367,0.12549,205.83,205.7,6.4371]
[1731238528571,5.89522852,205.87,205.72,21.6908]
[1731238529284,5.89522852,205.87,205.73,21.6908]
[1731238529492,0.12549,205.86,205.73,21.6908]
[1731238529671,5.89522852,205.87,205.73,21.6908]
[1731238529872,3.24,205.9,205.73,21.6908]
[1731238530088,0.12549,205.89,205.73,21.6908]
[1731238530684,7.68794096,205.9,205.75,21.6908]
[1731238530887,0.12549,205.89,205.75,21.6908]
[1731238531481,4.11044096,205.9,205.78,21.6908]
[1731238531682,16.3074,206.03,205.8,21.6908]
[1731238531902,0.1,206.0,205.8,21.6908]
[1731238532374,3.24,206.01,205.8,21.6908]
[1731238532580,0.12549,206.0,205.8,21.6908]
[1731238532972,20.1,206.0,205.76,0.1]
[1731238533178,20.1,206.0,205.82,21.6908]
[1731238534387,0.12549,205.99,205.82,21.6908]
[1731238536597,0.12549,205.99,205.76,0.1]
[1731238536786,0.12549,205.99,205.83,21.6908]
[1731238537288,0.12549,205.99,205.77,21.6908]
[1731238537495,9.13522852,206.01,205.81,15.2826]
[1731238537689,3.24,206.01,205.84,6.4082]
[1731238537882,19.26687465,206.04,205.87,15.2826]
[1731238538077,0.12549,206.03,205.87,15.2826]
[1731238538480,15.2826,206.04,205.87,15.2826]
[1731238538688,10.00307255,206.06,205.88,6.4082]
[1731238538888,25.28567255,206.06,205.89,15.2826]
[1731238539302,0.12549,206.05,205.89,15.2826]
[1731238540099,20.12549,206.05,205.89,15.2826]
[1731238540303,20.2,206.03,205.88,6.4082]
[1731238540495,0.12549,206.0,205.88,6.4082]
[1731238540699,3.94067579,205.99,205.88,6.4082]
[1731238541086,0.12549,205.98,205.88,6.4082]
[1731238541287,0.12549,205.96,205.88,6.4082]
[1731238541494,0.12549,205.94,205.88,6.4082]
[1731238541888,0.12549,205.94,205.85,6.4082]
[1731238543107,0.12549,205.97,205.85,6.4082]
[1731238543688,6.5599166,205.97,205.85,6.4082]
[1731238543894,20.12549,205.95,205.85,6.4082]
[1731238544495,2.91061023,205.95,205.85,6.4082]
[1731238544698,22.91061023,205.95,205.85,6.4082]
[1731238545192,25.69573046,205.95,205.85,6.4082]
[1731238545386,20.12549,205.93,205.84,15.2826]
[1731238545587,25.12652072,205.93,205.8,6.0768]
[1731238546206,20.12549,205.91,205.8,6.0768]
[1731238546794,25.12652072,205.91,205.8,6.0768]
[1731238547990,20.12549,205.91,205.8,6.0768]
[1731238550602,24.06974723,205.91,205.8,6.0768]
[1731238551301,35.40520455,205.91,205.8,6.0768]
[1731238552017,30.40417383,205.91,205.8,6.0768]
[1731238553205,24.06974723,205.91,205.8,6.0768]
[1731238553404,4.06974723,205.91,205.8,6.0768]
[1731238554706,20.12549,205.89,205.73,22.6815]
[1731238555022,26.86025914,205.89,205.73,22.6815]
[1731238556707,33.19468574,205.89,205.73,22.6815]
[1731238556902,20.12549,205.87,205.73,22.6815]
[1731238557831,3.94425723,205.91,205.73,22.6815]
[1731238557832,20.12549,205.9,205.73,22.6815]
[1731238557998,0.12549,205.9,205.73,22.6815]
[1731238558202,0.12549,205.88,205.73,22.6815]
[1731238558419,6.0725,205.87,205.73,22.6815]
[1731238558629,20.0,205.86,205.73,22.6815]
[1731238558923,15.0535,205.92,205.73,22.6815]
[1731238559116,0.12549,205.91,205.73,22.6815]
[1731238559518,15.0535,205.92,205.73,22.6815]
[1731238559924,0.12549,205.91,205.73,22.6815]
[1731238560305,20.12549,205.91,205.73,22.6815]
[1731238560500,0.12549,205.91,205.73,22.6815]
[1731238561234,4.72427696,205.98,205.75,0.2]
[1731238561533,4.11028557,205.96,205.75,0.1]
[1731238561821,6.21562665,206.0,205.75,0.1]
[1731238561822,0.12549,205.95,205.75,0.1]
[1731238562032,0.12549,205.95,205.74,22.6815]
[1731238562205,0.12549,205.96,205.74,22.6815]
[1731238563225,20.0,205.96,205.74,22.6815]
[1731238563419,0.12549,205.95,205.74,22.6815]
[1731238563723,4.84976696,205.95,205.74,22.6815]
[1731238564510,0.12549,205.95,205.74,22.6815]
[1731238568216,4.84976696,205.95,205.74,22.6815]
[1731238568426,0.12549,205.93,205.74,22.6815]
[1731238568616,4.84976696,205.93,205.74,22.6815]
[1731238568811,0.12549,205.91,205.74,22.6815]
[1731238569436,4.72427696,205.95,205.74,22.6815]
[1731238570241,0.12549,205.94,205.74,22.6815]
[1731238573334,0.12549,205.94,205.75,22.5079]
[1731238573935,0.12549,205.94,205.75,16.1361]
[1731238574122,22.7699,205.97,205.77,16.0361]
[1731238574518,0.12549,205.96,205.77,16.0361]
[1731238575128,20.12549,205.96,205.77,16.0361]
[1731238575331,20.12549,205.96,205.78,6.4718]
[1731238575525,20.12549,205.96,205.79,16.0361]
[1731238585039,20.12549,205.92,205.73,21.9671]
[1731238588153,24.24685729,205.92,205.73,21.9671]
[1731238588341,15.3108,205.93,205.74,0.2]
[1731238588927,15.3108,205.93,205.76,0.1]
[1731238589432,15.3108,205.93,205.76,0.2]
[1731238589634,0.12549,205.92,205.76,0.1]
[1731238590152,0.12549,205.92,205.76,0.2]
[1731238590348,0.12549,205.92,205.74,0.1]
[1731238590531,0.12549,205.92,205.73,22.0671]
[1731238590727,20.12549,205.92,205.75,0.2]
[1731238590950,15.3108,205.93,205.75,0.2]